bitfinex/quotes_SOLUSD_20250731
["timestamp","ask_amount","ask_price","bid_price","bid_amount"]
[1753974475832,9.94122557,176.18,176.16,41.71]
[1753974475997,9.94122557,176.19,176.17,0.69]
[1753974476201,9.94122557,176.18,176.16,41.02]
[1753974476397,11.21873025,176.17,176.13,0.06]
[1753974476624,9.94122557,176.14,176.13,0.06]
[1753974476811,9.94122557,176.14,176.13,41.08]
[1753974477742,9.94122557,176.14,176.13,41.77]
[1753974477909,9.94122557,176.15,176.13,41.77]
[1753974478229,9.94122557,176.16,176.14,0.69]
[1753974478827,5.67638277,176.17,176.13,46.75762113]
[1753974478828,9.94122557,176.17,176.13,46.75762113]
[1753974479018,9.94122557,176.17,176.15,0.69]
[1753974479221,9.94122557,176.18,176.16,41.02]
[1753974479819,9.94122557,176.18,176.16,41.71]
[1753974479998,9.94122557,176.17,176.16,41.02]
[1753974480203,15.61756092,176.17,176.16,41.02]
[1753974480428,9.94122557,176.17,176.16,41.02]
[1753974480634,0.56750468,176.2,176.16,41.71]
[1753974480832,9.94122557,176.18,176.16,41.71]
[1753974481731,9.94122557,176.17,176.13,0.06]
[1753974481945,9.94122557,176.18,176.14,51.65122557]
[1753974482112,9.94122557,176.18,176.15,0.69]
[1753974482618,9.94122557,176.18,176.16,0.69]
[1753974482804,5.67546222,176.2,176.17,41.02]
[1753974483010,15.61635261,176.21,176.18,0.69]
[1753974484029,15.61635261,176.21,176.13,0.06]
[1753974484030,9.94122557,176.19,176.13,0.75]
[1753974484235,9.94122557,176.16,176.14,41.02]
[1753974484419,9.94122557,176.17,176.14,41.68]
[1753974485225,9.94122557,176.21,176.16,9.94122557]
[1753974485405,9.94122557,176.21,176.17,41.68]
[1753974485723,9.94122557,176.18,176.17,41.02]
[1753974486521,16.31723873,176.18,176.13,0.06]
[1753974486712,9.94122557,176.14,176.13,0.06]
[1753974487032,9.94122557,176.14,176.13,41.74]
[1753974487406,9.94122557,176.15,176.13,41.74]
[1753974487806,6.24351784,176.18,176.13,41.74]
[1753974488007,9.94122557,176.15,176.13,41.08]
[1753974488425,9.94122557,176.14,176.13,41.08]
[1753974488928,15.61852771,176.14,176.13,41.08]
[1753974489121,16.31852771,176.14,176.13,41.08]
[1753974489325,15.61822501,176.15,176.13,41.08]
[1753974489634,9.94122557,176.15,176.13,41.74]
[1753974489927,0.56750468,176.17,176.13,41.74]
[1753974490110,9.94122557,176.15,176.13,41.74]
[1753974490931,5.67633535,176.17,176.13,41.74]
[1753974491114,9.94122557,176.16,176.14,0.66]
[1753974492021,9.94122557,176.18,176.15,0.66]
[1753974492218,15.61732342,176.18,176.16,41.02]
[1753974492827,9.94122557,176.17,176.16,41.02]
[1753974493029,9.94122557,176.17,176.16,41.0]
[1753974493030,10.64122557,176.17,176.16,41.0]
[1753974493222,9.94122557,176.17,176.16,41.0]
[1753974494819,15.61756092,176.17,176.16,41.0]
[1753974495433,9.94122557,176.17,176.16,41.0]
[1753974495736,9.94122557,176.17,176.16,41.66]
[1753974495912,9.94122557,176.17,176.16,41.0]
[1753974497041,5.67633535,176.17,176.16,41.0]
[1753974498920,5.67601316,176.18,176.16,41.0]
[1753974499836,147.3,176.19,176.17,0.66]
[1753974500044,5.67538377,176.2,176.18,0.66]
[1753974500246,5.67538377,176.2,176.19,41.0]
[1753974500459,11.7739116,176.2,176.19,41.0]
[1753974501719,6.09852783,176.2,176.19,41.0]
[1753974501916,6.79852783,176.2,176.19,41.0]
[1753974502126,6.09852783,176.2,176.19,41.0]
[1753974502839,6.79852783,176.2,176.19,41.0]
[1753974503048,52.66231896,176.2,176.13,0.72]
[1753974503346,6.09852783,176.16,176.14,40.98]
[1753974503520,6.09852783,176.17,176.15,0.66]
[1753974503721,5.67536889,176.2,176.16,0.66]
[1753974504021,6.09852783,176.17,176.14,0.56773021]
[1753974504324,6.09852783,176.15,176.13,0.72]
[1753974504543,0.56750468,176.18,176.14,40.98]
[1753974504723,6.79852783,176.15,176.14,40.98]
[1753974505047,11.77550767,176.15,176.14,40.98]
[1753974506348,12.47550767,176.15,176.14,40.98]
[1753974508156,11.77550767,176.15,176.14,40.98]
[1753974508727,11.77550767,176.15,176.14,41.64]
[1753974509127,5.67697984,176.15,176.14,41.64]
[1753974509327,11.77550767,176.15,176.14,40.98]
[1753974509533,6.09852783,176.15,176.14,40.98]
[1753974509733,6.09852783,176.15,176.14,41.64]
[1753974509934,6.09852783,176.18,176.14,41.64]
[1753974510152,6.09852783,176.18,176.15,0.66]
[1753974510334,5.70513735,176.21,176.17,6.09852783]
[1753974510533,0.03,176.21,176.18,47.73852783]
[1753974510750,0.03,176.21,176.2,6.09852783]
[1753974511058,0.03,176.21,176.19,7.32609693]
[1753974511262,0.03,176.21,176.2,0.66]
[1753974513358,0.03,176.21,176.18,41.64]
[1753974513562,0.03,176.21,176.2,0.66]
[1753974514272,9.95989898,176.21,176.18,41.54760131]
[1753974514472,9.95989898,176.21,176.19,0.69]
[1753974514770,9.95989898,176.21,176.18,40.98]
[1753974514771,9.92989898,176.2,176.18,40.98]
[1753974514958,9.92989898,176.2,176.18,41.67]
[1753974515156,0.03,176.21,176.19,0.69]
[1753974515469,0.03,176.21,176.2,0.69]
[1753974516535,15.63498829,176.21,176.18,40.98]
[1753974516740,9.92989898,176.2,176.18,40.98]
[1753974517044,15.63498829,176.21,176.18,41.67]
[1753974517250,9.95989898,176.21,176.19,0.69]
[1753974517563,0.03,176.21,176.2,0.69]
[1753974518135,0.03,176.21,176.2,11.18743586]
[1753974518954,0.03,176.21,176.2,23.19910475]
[1753974522174,0.03,176.21,176.2,7.59383688]
[1753974522740,0.03,176.21,176.2,6.3363]
[1753974522943,0.03,176.21,176.18,52.16750029]
[1753974523172,9.95989898,176.21,176.19,40.94]
[1753974523972,9.95989898,176.21,176.19,41.63]
[1753974524147,0.03,176.21,176.2,0.69]
[1753974524570,0.03,176.21,176.19,40.94]
[1753974524870,0.03,176.21,176.19,41.63]
[1753974525766,0.03,176.21,176.2,0.69]
[1753974525967,0.03,176.21,176.2,10.61989898]
[1753974526275,0.03,176.21,176.2,16.86280475]
[1753974526653,0.03,176.21,176.2,57.80280475]
[1753974530696,0.03,176.21,176.2,83.80280475]
[1753974531170,0.03,176.21,176.2,100.58748872]
[1753974534205,0.03,176.23,176.21,18.31698397]
[1753974534368,0.03,176.23,176.22,61.34727043]
[1753974534569,1e-08,176.23,176.22,68.29527043]
[1753974534787,1e-08,176.23,176.22,54.52231747]
[1753974534989,1e-08,176.24,176.22,77.39384644]
[1753974535186,1e-08,176.24,176.23,6.086845]
[1753974535394,1e-08,176.24,176.23,6.776845]
[1753974536409,1e-08,176.24,176.23,12.45124776]
[1753974536776,1e-08,176.24,176.23,79.35124776]
[1753974537267,1e-08,176.24,176.23,72.57440276]
[1753974537469,0.71000001,176.24,176.22,12.32899789]
[1753974537686,0.71000001,176.24,176.23,40.9]
[1753974538208,5.67440276,176.23,176.19,40.88]
[1753974538495,0.71,176.22,176.2,40.9]
[1753974538674,6.65434968,176.21,176.2,40.9]
[1753974538995,11.21587783,176.21,176.2,40.9]
[1753974539775,26.0,176.19,176.18,40.9]
[1753974539999,36.64837315,176.19,176.18,40.9]
[1753974540284,42.32406416,176.19,176.18,40.9]
[1753974540485,26.0,176.16,176.15,0.06]
[1753974540808,36.50587783,176.16,176.15,0.06]
[1753974540974,54.0005618,176.16,176.15,0.06]
[1753974542070,54.0005618,176.16,176.15,1e-08]
[1753974542291,59.67721938,176.16,176.15,1e-08]
[1753974543179,42.89253541,176.16,176.15,1e-08]
[1753974544780,59.67721938,176.16,176.15,1e-08]
[1753974546000,16.78468397,176.15,176.13,0.06]
[1753974546179,10.50587783,176.14,176.13,0.06]
[1753974546378,16.84317997,176.14,176.13,0.06]
[1753974546577,26.0,176.1,176.07,40.9]
[1753974546776,9.93837315,176.08,176.07,40.9]
[1753974547884,11.16587783,176.08,176.04,0.06]
[1753974548118,1.22750468,176.08,176.05,40.92]
[1753974548316,9.93837315,176.06,176.05,40.92]
[1753974549084,16.278255,176.06,176.05,40.92]
[1753974549302,15.618255,176.06,176.05,40.92]
[1753974549792,9.93837315,176.06,176.05,40.92]
[1753974550012,15.618255,176.06,176.05,40.92]
[1753974550387,9.93837315,176.06,176.05,40.92]
[1753974550891,15.618255,176.06,176.05,40.92]
[1753974551203,9.93837315,176.06,176.05,40.92]
[1753974551408,15.618255,176.06,176.05,40.92]
[1753974551610,9.93837315,176.06,176.05,40.92]
[1753974552317,15.618255,176.06,176.05,40.92]
[1753974552517,16.278255,176.06,176.05,40.92]
[1753974552893,16.278255,176.06,176.04,0.06]
[1753974553097,1.22750468,176.05,176.04,0.06]
[1753974553292,10.50587783,176.05,176.04,0.06]
[1753974553809,11.16587783,176.05,176.04,0.06]
[1753974554406,10.50587783,176.05,176.04,0.06]
[1753974554593,26.56750468,176.07,176.04,0.73]
[1753974554791,9.93837315,176.05,176.04,0.73]
[1753974555114,9.93837315,176.05,176.04,0.06]
[1753974555415,42.78468397,176.03,176.02,0.06]
[1753974555596,63.22893495,176.03,176.0,0.06]
[1753974555791,36.66143027,176.01,176.0,0.06]
[1753974556012,37.22893495,176.01,176.0,0.06]
[1753974556195,42.43321986,176.01,176.0,0.06]
[1753974556513,48.11471522,176.01,176.0,0.06]
[1753974557514,42.78468397,175.99,175.98,0.06]
[1753974557721,53.2905618,175.99,175.98,0.06]
[1753974557906,53.9505618,175.99,175.98,0.06]
[1753974558414,16.78468397,175.98,175.89,0.67]
[1753974558621,9.93837315,175.9,175.86,0.2]
[1753974558789,9.93837315,175.87,175.86,0.2]
[1753974559720,9.93837315,175.87,175.86,0.87]
[1753974559890,9.93837315,175.89,175.86,0.87]
[1753974560094,9.93837315,175.88,175.87,0.67]
[1753974560599,9.93837315,175.88,175.86,0.2]
[1753974560805,9.93837315,175.87,175.86,0.87]
[1753974561217,6.34487425,175.91,175.86,0.87]
[1753974561419,9.93837315,175.87,175.86,0.87]
[1753974564293,0.56750468,175.92,175.86,6.5563414]
[1753974564518,0.56750468,175.92,175.87,0.67]
[1753974564710,1.22750468,175.92,175.88,40.92]
[1753974564909,9.93837315,175.89,175.88,40.92]
[1753974565117,10.50587783,175.89,175.88,40.92]
[1753974567223,16.19124936,175.89,175.88,40.92]
[1753974567515,9.93837315,175.89,175.88,40.92]
[1753974567901,26.56750468,175.92,175.88,41.59]
[1753974568096,9.93837315,175.89,175.88,41.59]
[1753974568300,9.93837315,175.89,175.88,40.92]
[1753974569122,15.62374468,175.89,175.88,40.92]
[1753974569419,16.28374468,175.89,175.86,0.2]
[1753974569630,9.93837315,175.87,175.86,0.2]
[1753974571331,16.28439123,175.87,175.86,0.2]
[1753974571717,16.85189591,175.87,175.86,0.2]
[1753974573315,16.19189591,175.87,175.86,0.2]
[1753974573508,9.93837315,175.87,175.86,0.2]
[1753974573911,26.0,175.87,175.86,0.87]
[1753974574111,35.93837315,175.87,175.86,0.87]
[1753974574305,9.93837315,175.9,175.86,0.87]
[1753974574519,0.56750468,175.93,175.87,51.56837315]
[1753974574706,16.18997791,175.93,175.88,10.64837315]
[1753974574909,9.93837315,175.91,175.89,0.71]
[1753974575321,9.93837315,175.9,175.87,40.92]
[1753974575509,9.93837315,175.88,175.87,40.92]
[1753974575921,35.93837315,175.88,175.87,40.92]
[1753974576126,36.65837315,175.88,175.86,0.2]
[1753974576324,10.50587783,175.87,175.86,0.2]
[1753974577325,16.19189591,175.87,175.86,0.2]
[1753974579123,32.25345867,175.88,175.86,0.91]
[1753974579342,9.93837315,175.87,175.86,0.91]
[1753974579637,15.62439123,175.87,175.86,0.2]
[1753974580925,5.68601808,175.87,175.86,0.2]
[1753974581240,5.68548043,175.89,175.86,0.91]
[1753974581428,9.93837315,175.87,175.86,0.2]
[1753974581625,0.56750468,175.9,175.86,0.2]
[1753974581830,9.93837315,175.92,175.87,50.85837315]
[1753974582037,10.50587783,175.91,175.88,0.71]
[1753974582231,23.33732557,175.93,175.89,0.71]
[1753974582444,9.93837315,175.91,175.89,0.71]
[1753974583549,5.68246391,175.98,175.9,10.64837315]
[1753974583845,148.05,175.99,175.9,10.64837315]
[1753974583846,147.33,175.99,175.95,9.93837315]
[1753974584046,10.50587783,175.98,175.96,40.92]
[1753974584922,9.93837315,175.97,175.96,40.92]
[1753974585135,15.62115998,175.97,175.96,40.92]
[1753974585559,9.93837315,175.97,175.96,40.92]
[1753974586650,15.62115998,175.97,175.96,40.92]
[1753974588528,15.62115998,175.97,175.94,40.92]
[1753974588749,9.93837315,175.95,175.94,40.92]
[1753974588950,10.65837315,175.95,175.92,40.92]
[1753974589248,9.93837315,175.93,175.92,40.92]
[1753974589646,9.93837315,175.93,175.92,41.63]
[1753974590026,5.68361824,175.95,175.92,41.63]
[1753974590230,9.93837315,175.93,175.92,40.92]
[1753974590650,9.93837315,175.93,175.89,0.71]
[1753974590825,9.93837315,175.9,175.87,2.2726]
[1753974591030,9.93837315,175.88,175.87,2.2726]
[1753974591236,5.68540851,175.89,175.87,43.1726]
[1753974591237,9.93837315,175.89,175.87,43.1726]
[1753974591436,5.68472514,175.91,175.88,0.71]
[1753974591640,9.93837315,175.89,175.88,0.71]
[1753974591847,9.93837315,175.89,175.87,42.4626]
[1753974592053,9.93837315,175.88,175.87,42.4626]
[1753974592258,9.93837315,175.88,175.87,43.1726]
[1753974592460,9.93837315,175.89,175.87,43.1726]
[1753974592956,9.93837315,175.89,175.88,0.71]
[1753974594652,15.62385092,175.89,175.87,42.4626]
[1753974594952,9.93837315,175.88,175.87,43.1726]
[1753974595145,5.68510206,175.9,175.88,0.71]
[1753974595146,9.93837315,175.89,175.88,0.71]
[1753974596045,5.68510206,175.9,175.86,0.2]
[1753974596233,9.93837315,175.89,175.87,41.61]
[1753974596652,15.62376387,175.89,175.87,41.61]
[1753974597050,9.93837315,175.88,175.87,40.9]
[1753974598761,15.62406794,175.88,175.87,40.9]
[1753974599663,16.34406794,175.88,175.87,40.9]
[1753974600034,22.23220939,175.88,175.87,40.9]
[1753974600231,27.01005722,175.88,175.87,40.9]
[1753974600432,0.56750468,175.91,175.88,0.06]
[1753974600670,151.94614307,175.94,175.89,6.39537153]
[1753974600671,6.31635571,175.9,175.89,6.39537153]
[1753974600878,5.68366452,175.95,175.89,15.62374468]
[1753974601079,9.47464256,175.95,175.91,9.93837315]
[1753974601238,9.47464256,175.95,175.92,40.9]
[1753974601439,9.93837315,175.93,175.92,40.9]
[1753974601736,13.72935119,175.93,175.92,40.9]
[1753974601939,0.56750468,175.95,175.92,40.9]
[1753974602160,0.56750468,175.95,175.92,41.61]
[1753974602161,9.93837315,175.95,175.92,41.61]
[1753974602362,0.56750468,175.96,175.92,40.9]
[1753974602640,9.93837315,175.94,175.92,40.9]
[1753974602942,10.50587783,175.93,175.92,40.9]
[1753974603138,11.22587783,175.93,175.88,6.3082]
[1753974603349,9.93837315,175.9,175.89,40.9]
[1753974603734,9.93837315,175.91,175.89,41.61]
[1753974604148,9.93837315,175.92,175.89,41.61]
[1753974604361,6.25136779,175.94,175.9,0.67]
[1753974604362,9.93837315,175.94,175.9,0.67]
[1753974604565,9.93837315,175.91,175.88,0.06]
[1753974604884,5.68448587,175.92,175.9,40.88]
[1753974605045,5.68448587,175.92,175.88,0.06]
[1753974605046,10.63837315,175.91,175.88,0.06]
[1753974605239,9.93837315,175.89,175.88,0.06]
[1753974605561,39.72979347,175.89,175.88,0.06]
[1753974605773,40.42960548,175.89,175.88,0.06]
[1753974606252,45.36430009,175.89,175.88,1e-08]
[1753974606566,23.08618397,175.86,175.84,1e-08]
[1753974606742,26.0,175.77,175.7,17.758662]
[1753974606949,36.63837315,175.77,175.71,40.88]
[1753974607147,27.26750468,175.77,175.71,40.88]
[1753974607350,37.20587783,175.77,175.71,40.88]
[1753974607556,53.9905618,175.77,175.76,110.76776907]
[1753974607742,58.6360762,175.77,175.71,40.88]
[1753974607949,35.93837315,175.72,175.71,40.88]
[1753974608158,35.93837315,175.72,175.68,41.55]
[1753974608351,9.93837315,175.71,175.68,40.88]
[1753974608559,26.0,175.72,175.68,41.55]
[1753974608763,35.93837315,175.72,175.69,0.67]
[1753974608988,9.93837315,175.7,175.63,1.5693788]
[1753974609148,0.56750468,175.7,175.63,1.67]
[1753974609480,9.93837315,175.67,175.63,1.0]
[1753974610166,9.93837315,175.67,175.63,1.67]
[1753974610683,26.0,175.67,175.64,10.60837315]
[1753974610894,26.0,175.67,175.65,0.67]
[1753974611180,9.93837315,175.67,175.63,42.57]
[1753974611473,9.93837315,175.66,175.63,42.57]
[1753974611679,26.0,175.68,175.64,0.67]
[1753974611970,9.93837315,175.67,175.63,41.9]
[1753974612278,10.50587783,175.67,175.64,0.67]
[1753974612590,9.93837315,175.67,175.65,0.67]
[1753974613044,36.50587783,175.68,175.65,0.67]
[1753974613242,35.93837315,175.68,175.65,0.67]
[1753974613945,9.93837315,175.67,175.63,52.50837315]
[1753974614146,9.93837315,175.67,175.64,0.67]
[1753974614345,9.93837315,175.67,175.65,0.67]
[1753974614346,10.50587783,175.67,175.65,0.67]
[1753974614644,31.69223596,175.68,175.63,41.9]
[1753974614850,0.56750468,175.67,175.65,0.67]
[1753974615150,0.56750468,175.67,175.63,41.9]
[1753974615354,10.50587783,175.67,175.63,52.50837315]
[1753974615873,26.0,175.68,175.64,10.60837315]
[1753974616185,35.93837315,175.68,175.65,0.67]
[1753974616489,33.89088497,175.71,175.65,0.67]
[1753974616490,17.106201,175.71,175.67,9.93837315]
[1753974616770,0.7,175.74,175.67,9.93837315]
[1753974616771,0.56750468,175.76,175.7,9.93837315]
[1753974616953,17.1023,175.77,175.75,9.93837315]
[1753974617283,0.56750468,175.78,175.75,10.60837315]
[1753974617447,0.56750468,175.78,175.71,41.48911957]
[1753974617448,5.68830634,175.8,175.76,0.67]
[1753974617648,10.50587783,175.79,175.75,9.93837315]
[1753974618069,10.50587783,175.79,175.75,50.85837315]
[1753974618295,10.50587783,175.79,175.75,51.52837315]
[1753974618575,6.25633171,175.79,175.75,51.52837315]
[1753974619089,6.95633171,175.79,175.75,50.85837315]
[1753974619252,6.25633171,175.79,175.75,51.52837315]
[1753974620150,16.19470486,175.79,175.75,51.52837315]
[1753974620355,9.93837315,175.76,175.7,9.93837315]
[1753974620559,9.93837315,175.76,175.69,34.7941]
[1753974620560,0.56750468,175.77,175.73,9.93837315]
[1753974620759,10.50587783,175.77,175.72,9.93837315]
[1753974620952,9.93837315,175.75,175.71,50.85837315]
[1753974621153,9.93837315,175.76,175.72,0.67]
[1753974621353,0.56750468,175.75,175.72,0.67]
[1753974621584,9.93837315,175.76,175.72,0.67]
[1753974621756,10.50587783,175.77,175.72,0.67]
[1753974621955,10.50587783,175.76,175.72,0.67]
[1753974622172,9.93837315,175.73,175.65,6.1503]
[1753974622356,10.50587783,175.72,175.67,9.93837315]
[1753974622554,16.1962249,175.74,175.7,9.93837315]
[1753974622758,6.25785175,175.74,175.71,0.67]
[1753974623353,9.93837315,175.72,175.7,40.9]
[1753974623661,11.20587783,175.71,175.69,0.06]
[1753974623862,9.93837315,175.7,175.69,0.06]
[1753974624161,10.63837315,175.7,175.69,0.06]
[1753974624356,9.93837315,175.7,175.69,0.06]
[1753974624560,15.62989278,175.7,175.69,0.06]
[1753974625274,33.11457675,175.7,175.69,0.06]
[1753974625456,16.32989278,175.7,175.69,0.06]
[1753974625651,41.62989278,175.7,175.69,0.06]
[1753974626177,59.11457675,175.7,175.69,0.06]
[1753974626879,41.62989278,175.7,175.69,0.06]
[1753974627075,59.11457675,175.7,175.69,0.06]
[1753974627471,59.68208143,175.7,175.69,0.06]
[1753974627776,42.19739746,175.7,175.69,0.06]
[1753974628865,59.68208143,175.7,175.69,0.06]
[1753974629172,33.68208143,175.7,175.69,0.06]
[1753974629884,32.98208143,175.7,175.69,0.06]
[1753974630373,33.68208143,175.7,175.69,0.06]
[1753974630567,5.69281566,175.66,175.63,41.92]
[1753974630767,35.93837315,175.67,175.64,0.67]
[1753974630981,35.93837315,175.67,175.63,41.92]
[1753974630982,41.63091887,175.67,175.65,0.67]
[1753974631603,10.50587783,175.66,175.63,41.92]
[1753974631892,9.93837315,175.64,175.63,41.92]
[1753974632078,9.93837315,175.64,175.63,1.0]
[1753974632275,26.0,175.64,175.63,1.0]
[1753974632600,36.50587783,175.64,175.63,1.0]
[1753974632763,32.26096858,175.64,175.63,1.0]
[1753974632968,42.19934173,175.64,175.63,1.0]
[1753974633874,59.6840257,175.64,175.63,1.0]
[1753974634261,49.74565255,175.64,175.63,1.0]
[1753974634482,42.19934173,175.64,175.63,1.0]
[1753974634887,42.86934173,175.64,175.63,1.0]
[1753974635088,59.6540257,175.64,175.63,1.0]
[1753974635383,59.6540257,175.64,175.63,1e-08]
[1753974635580,100.5740257,175.64,175.63,1e-08]
[1753974636566,58.9840257,175.64,175.63,1e-08]
[1753974637566,42.19934173,175.64,175.63,1e-08]
[1753974638265,0.56750468,175.65,175.63,0.71000001]
[1753974638468,0.56750468,175.65,175.64,0.71]
[1753974638681,6.26064444,175.65,175.63,1e-08]
[1753974639091,9.93837315,175.64,175.63,1e-08]
[1753974639589,6.26064444,175.65,175.63,1e-08]
[1753974639974,6.26064444,175.65,175.63,0.71000001]
[1753974640480,16.19901759,175.65,175.63,1e-08]
[1753974640687,9.93837315,175.64,175.63,1e-08]
[1753974640892,31.6934639,175.64,175.63,1e-08]
[1753974641063,26.0,175.64,175.63,1e-08]
[1753974641389,0.56750468,175.67,175.63,10.64837316]
[1753974641559,0.56750468,175.67,175.64,9.93837315]
[1753974641762,15.63030388,175.69,175.65,9.93837315]
[1753974641963,10.50587783,175.69,175.65,9.93837315]
[1753974642189,16.19777242,175.69,175.66,0.71]
[1753974642389,26.0,175.67,175.64,10.64837315]
[1753974642560,0.56750468,175.67,175.64,10.64837315]
[1753974642760,5.69281566,175.66,175.63,1e-08]
[1753974642994,35.93837315,175.64,175.63,1e-08]
[1753974644383,36.28837315,175.64,175.63,1e-08]
[1753974644595,93.99305712,175.64,175.63,1e-08]
[1753974644799,99.68652102,175.64,175.63,1e-08]
[1753974645169,100.2540257,175.64,175.63,1e-08]
[1753974645801,103.22504299,175.64,175.63,1e-08]
[1753974645994,0.56750468,175.64,175.63,0.71000001]
[1753974646197,9.93837315,175.67,175.63,10.64837316]
[1753974646374,0.56750468,175.66,175.64,0.71]
[1753974646571,9.93837315,175.66,175.63,1e-08]
[1753974646898,26.0,175.65,175.64,0.71]
[1753974647098,26.0,175.65,175.63,1e-08]
[1753974647284,0.56750468,175.66,175.64,0.71]
[1753974647491,15.6309737,175.67,175.65,0.71]
[1753974647799,6.26010523,175.67,175.65,0.71]
[1753974648315,9.93837315,175.66,175.63,1e-08]
[1753974648504,0.56750468,175.65,175.63,1e-08]
[1753974648705,0.56750468,175.66,175.63,0.71000001]
[1753974648912,5.69313976,175.65,175.63,0.71000001]
[1753974649407,0.56750468,175.69,175.64,10.64837315]
[1753974649581,4.20589529,175.68,175.67,9.93837315]
[1753974649782,4.20589529,175.68,175.67,10.64837315]
[1753974650288,13.68303803,175.69,175.67,0.71]
[1753974650496,4.20589529,175.68,175.67,0.71]
[1753974651000,4.20589529,175.68,175.65,10.64837315]
[1753974651001,9.89815853,175.68,175.65,10.64837315]
[1753974651205,5.69226324,175.68,175.66,0.71]
[1753974651410,4.21862552,175.67,175.66,0.71]
[1753974651781,5.69226324,175.68,175.65,9.93837315]
[1753974651984,9.48770213,175.68,175.66,0.71]
[1753974652391,9.48770213,175.68,175.65,9.93837315]
[1753974653000,9.48770213,175.68,175.65,10.64837315]
[1753974653314,9.48770213,175.68,175.65,9.93837315]
[1753974653607,9.48770213,175.68,175.66,0.71]
[1753974654216,9.48770213,175.68,175.67,0.71]
[1753974654392,9.91502611,175.68,175.67,0.71]
[1753974655419,9.91502611,175.68,175.65,9.93837315]
[1753974655609,9.25876524,175.67,175.63,1e-08]
[1753974655785,35.93837315,175.64,175.63,1e-08]
[1753974655987,44.52672691,175.64,175.63,1e-08]
[1753974656605,18.52629804,175.64,175.63,1e-08]
[1753974656996,17.95879336,175.64,175.63,1e-08]
[1753974657197,8.58792489,175.64,175.63,1e-08]
[1753974657404,11.15301306,175.64,175.63,1e-08]
[1753974657622,14.95076452,175.64,175.63,1e-08]
[1753974657924,14.2822617,175.64,175.63,1e-08]
[1753974658088,10.83451024,175.64,175.63,1e-08]
[1753974658289,72.3384368,175.64,175.63,1e-08]
[1753974658522,31.4184368,175.64,175.63,1e-08]
[1753974658695,72.3384368,175.64,175.63,1e-08]
[1753974658895,82.27680995,175.64,175.63,1e-08]
[1753974659092,45.58009559,175.64,175.63,1e-08]
[1753974659322,82.27680995,175.64,175.63,1e-08]
[1753974661317,42.78468397,175.62,175.61,1e-08]
[1753974661515,107.92745833,175.62,175.61,1e-08]
[1753974661823,108.27745833,175.62,175.61,1e-08]
[1753974664200,67.35745833,175.62,175.61,1e-08]
[1753974664400,108.27745833,175.62,175.61,1e-08]
[1753974664824,150.98330047,175.62,175.56,2.90554447]
[1753974665004,9.93837315,175.57,175.56,2.90554447]
[1753974665204,57.14161172,175.57,175.56,2.90554447]
[1753974665591,16.20161172,175.57,175.56,2.90554447]
[1753974665791,57.12161172,175.57,175.56,2.90554447]
[1753974666026,47.18323857,175.57,175.56,2.90554447]
[1753974666328,0.56750468,175.57,175.56,3.60554447]
[1753974666507,46.61537936,175.59,175.56,13.54391762]
[1753974666826,9.93837315,175.57,175.56,2.90554447]
[1753974667123,32.41879101,175.57,175.56,1e-08]
[1753974667322,16.78468397,175.56,175.55,71.01649872]
[1753974667628,16.78468397,175.56,175.55,8.57439857]
[1753974667629,78.89893495,175.56,175.55,8.57439857]
[1753974667806,83.12579631,175.56,175.55,1e-08]
[1753974668124,83.12579631,175.56,175.45,1.5467]
[1753974668125,26.0,175.49,175.45,1.5467]
[1753974668309,9.93837315,175.47,175.45,1.5467]
[1753974668628,0.56750468,175.46,175.45,2.2467]
[1753974668993,0.56750468,175.48,175.45,17.88466758]
[1753974669198,15.63540499,175.53,175.46,0.7]
[1753974669500,41.54750468,175.52,175.47,9.93837315]
[1753974669716,0.56750468,175.52,175.49,9.93837315]